[Event "Early-Titled-Tuesday-Blitz-October-24-2023"]
[Site "Chess.com"]
[Date "2023.10.24"]
[Round "7"]
[White "SlavenPastar"]
[Black "VOneChess"]
[Result "1-0"]
[WhiteElo "2608"]
[BlackElo "2298"]
[TimeControl "180+1"]
[EndTime "9:13:44 PDT"]
[Termination "SlavenPastar won by resignation"]

1. b3 {[%clk 0:03:00.9]} 1... e5 {[%clk 0:02:58.1]} 2. Bb2 {[%clk 0:03:01.5]}
2... Nc6 {[%clk 0:02:58.5]} 3. Nf3 {[%clk 0:03:01.7]} 3... e4 {[%clk 0:02:57.7]}
4. Nd4 {[%clk 0:03:02]} 4... Bc5 {[%clk 0:02:55.4]} 5. Nxc6 {[%clk 0:02:57.9]}
5... bxc6 {[%clk 0:02:53.2]} 6. Bxg7 {[%clk 0:02:54.6]} 6... Qh4 {[%clk
0:01:46.9]} 7. e3 {[%clk 0:02:51.2]} 7... d5 {[%clk 0:01:30.2]} 8. Bxh8 {[%clk
0:02:47.3]} 8... Ne7 {[%clk 0:01:18.2]} 9. Bd4 {[%clk 0:02:41.4]} 9... Bd6
{[%clk 0:01:13.2]} 10. g3 {[%clk 0:02:40]} 10... Qg5 {[%clk 0:01:05.8]} 11. c4
{[%clk 0:02:39.2]} 11... c5 {[%clk 0:01:03.9]} 12. Bb2 {[%clk 0:02:36.2]} 12...
Nf5 {[%clk 0:01:03.7]} 13. cxd5 {[%clk 0:02:28.7]} 13... h5 {[%clk 0:00:46.1]}
14. Nc3 {[%clk 0:02:25.6]} 14... Nxg3 {[%clk 0:00:01.6]} 15. hxg3 {[%clk
0:02:20.2]} 15... Qxg3 {[%clk 0:00:02.1]} 16. Nxe4 {[%clk 0:02:08.4]} 16... Qg6
{[%clk 0:00:02.3]} 17. Nxd6+ {[%clk 0:02:05.5]} 17... Qxd6 {[%clk 0:00:03.2]}
18. Bb5+ {[%clk 0:02:00.8]} 18... Bd7 {[%clk 0:00:02.7]} 19. Bxd7+ {[%clk
0:02:00.5]} 19... Qxd7 {[%clk 0:00:03.3]} 20. Bf6 {[%clk 0:01:52.5]} 20... Qd6
{[%clk 0:00:02.6]} 21. Qxh5 {[%clk 0:01:49.4]} 21... Qxf6 {[%clk 0:00:02.5]} 22.
Qh8+ {[%clk 0:01:49.4]} 22... Ke7 {[%clk 0:00:03]} 23. Qxf6+ {[%clk 0:01:47.9]}
23... Kxf6 {[%clk 0:00:03.9]} 24. f4 {[%clk 0:01:45]} 24... Rd8 {[%clk
0:00:03.9]} 25. Rh5 {[%clk 0:01:43.9]} 25... Ke7 {[%clk 0:00:02.2]} 26. Ke2
{[%clk 0:01:43]} 26... Rg8 {[%clk 0:00:02.8]} 27. Kf2 {[%clk 0:01:40.5]} 27...
Rg6 {[%clk 0:00:02.4]} 28. Rg1 {[%clk 0:01:39.5]} 28... Ra6 {[%clk 0:00:03.1]}
29. a4 {[%clk 0:01:36.6]} 29... c4 {[%clk 0:00:03.7]} 30. a5 {[%clk 0:01:29]}
30... Rxa5 {[%clk 0:00:03.5]} 31. d6+ {[%clk 0:01:28.7]} 1-0

[Event "Early-Titled-Tuesday-Blitz-October-24-2023"]
[Site "Chess.com"]
[Date "2023.10.24"]
[Round "7"]
[White "Malikova777"]
[Black "SargissyanSargis"]
[Result "1/2-1/2"]
[WhiteElo "2251"]
[BlackElo "2402"]
[TimeControl "180+1"]
[EndTime "9:13:48 PDT"]
[Termination "Game drawn by agreement"]

1. d4 {[%clk 0:03:00.9]} 1... Nf6 {[%clk 0:02:57.2]} 2. c4 {[%clk 0:03:00.6]}
2... g6 {[%clk 0:02:57.9]} 3. Nc3 {[%clk 0:03:00.5]} 3... d5 {[%clk 0:02:58.5]}
4. cxd5 {[%clk 0:03:00.2]} 4... Nxd5 {[%clk 0:02:58.5]} 5. Bd2 {[%clk 0:03:01]}
5... Bg7 {[%clk 0:02:57.4]} 6. e4 {[%clk 0:03:00.9]} 6... Nb6 {[%clk 0:02:57.8]}
7. Be3 {[%clk 0:02:59.8]} 7... O-O {[%clk 0:02:56.2]} 8. h3 {[%clk 0:02:59.6]}
8... Nc6 {[%clk 0:02:53.9]} 9. Nf3 {[%clk 0:02:59.6]} 9... e5 {[%clk 0:02:48.5]}
10. d5 {[%clk 0:02:58.4]} 10... Ne7 {[%clk 0:02:46.3]} 11. a4 {[%clk 0:02:43.3]}
11... a5 {[%clk 0:02:42.9]} 12. Bb5 {[%clk 0:02:41.6]} 12... Bd7 {[%clk
0:02:34.9]} 13. O-O {[%clk 0:02:40]} 13... Bxb5 {[%clk 0:02:34.2]} 14. Nxb5
{[%clk 0:02:40.9]} 14... Nc4 {[%clk 0:02:34.4]} 15. Qc1 {[%clk 0:02:34.6]} 15...
Nxe3 {[%clk 0:02:32.1]} 16. Qxe3 {[%clk 0:02:35.5]} 16... c6 {[%clk 0:02:29.7]}
17. dxc6 {[%clk 0:02:34.4]} 17... Nxc6 {[%clk 0:02:30.4]} 18. Rfd1 {[%clk
0:02:34.3]} 18... Qe7 {[%clk 0:02:29.9]} 19. Rac1 {[%clk 0:02:29.6]} 19... Rfd8
{[%clk 0:02:27.9]} 20. Qb6 {[%clk 0:02:27.6]} 20... Bh6 {[%clk 0:02:23.3]} 21.
Rb1 {[%clk 0:02:23.7]} 21... Bf8 {[%clk 0:02:16.4]} 22. Nc7 {[%clk 0:02:21.3]}
22... Rab8 {[%clk 0:01:51.7]} 23. Nd5 {[%clk 0:02:21]} 23... Qd6 {[%clk
0:01:03.9]} 24. Rbc1 {[%clk 0:02:01.3]} 24... Kg7 {[%clk 0:00:59.7]} 25. Ne3
{[%clk 0:01:56]} 25... Nd4 {[%clk 0:00:56.3]} 26. Qxd6 {[%clk 0:01:53.3]} 26...
Nxf3+ {[%clk 0:00:48.8]} 27. gxf3 {[%clk 0:01:51.4]} 27... Bxd6 {[%clk
0:00:41.7]} 28. Rd5 {[%clk 0:01:45.9]} 28... Bb4 {[%clk 0:00:34.8]} 29. Rcd1
{[%clk 0:01:43.7]} 29... Rxd5 {[%clk 0:00:28.7]} 30. Rxd5 {[%clk 0:01:44.6]}
30... Rc8 {[%clk 0:00:15.4]} 31. Rxe5 {[%clk 0:01:38.9]} 31... Rc1+ {[%clk
0:00:15.9]} 32. Kg2 {[%clk 0:01:38.7]} 32... Rb1 {[%clk 0:00:16.6]} 33. Rb5
{[%clk 0:01:35]} 33... Rxb2 {[%clk 0:00:14.1]} 34. Nd5 {[%clk 0:01:34.6]} 34...
Ra2 {[%clk 0:00:08.2]} 35. Nxb4 {[%clk 0:01:32.5]} 35... axb4 {[%clk 0:00:08.8]}
36. Rxb4 {[%clk 0:01:33.4]} 36... h5 {[%clk 0:00:07.6]} 1/2-1/2

[Event "Early-Titled-Tuesday-Blitz-October-24-2023"]
[Site "Chess.com"]
[Date "2023.10.24"]
[Round "7"]
[White "DTChess"]
[Black "JG-17"]
[Result "0-1"]
[WhiteElo "2660"]
[BlackElo "2490"]
[TimeControl "180+1"]
[EndTime "9:13:51 PDT"]
[Termination "JG-17 won by resignation"]

1. e4 {[%clk 0:03:00.9]} 1... c5 {[%clk 0:03:00.4]} 2. Nf3 {[%clk 0:03:00.5]}
2... d6 {[%clk 0:03:01.1]} 3. Nc3 {[%clk 0:03:00]} 3... Nf6 {[%clk 0:03:00.5]}
4. d4 {[%clk 0:03:00.2]} 4... cxd4 {[%clk 0:03:01.4]} 5. Nxd4 {[%clk 0:03:00.8]}
5... g6 {[%clk 0:03:01.1]} 6. Bc4 {[%clk 0:02:59.1]} 6... Nc6 {[%clk 0:03:00.5]}
7. Bb3 {[%clk 0:02:58.7]} 7... Bg7 {[%clk 0:03:00.8]} 8. Nxc6 {[%clk 0:02:53.7]}
8... bxc6 {[%clk 0:03:01.7]} 9. f3 {[%clk 0:02:53.8]} 9... O-O {[%clk
0:03:02.2]} 10. Be3 {[%clk 0:02:53.6]} 10... Ba6 {[%clk 0:02:46.4]} 11. Qd2
{[%clk 0:02:51.5]} 11... Nd7 {[%clk 0:02:41.5]} 12. h4 {[%clk 0:02:49.9]} 12...
h5 {[%clk 0:02:40]} 13. O-O-O {[%clk 0:02:49.4]} 13... Ne5 {[%clk 0:02:39.8]}
14. Bh6 {[%clk 0:02:38.1]} 14... Qa5 {[%clk 0:02:37.4]} 15. Bxg7 {[%clk
0:02:36.5]} 15... Kxg7 {[%clk 0:02:37.9]} 16. f4 {[%clk 0:02:32]} 16... Ng4
{[%clk 0:02:34.3]} 17. Kb1 {[%clk 0:02:21.8]} 17... Rab8 {[%clk 0:02:31.7]} 18.
e5 {[%clk 0:02:16]} 18... dxe5 {[%clk 0:02:29.9]} 19. fxe5 {[%clk 0:02:15]}
19... Qxe5 {[%clk 0:02:26.1]} 20. Rde1 {[%clk 0:02:08.4]} 20... Qd6 {[%clk
0:02:12.3]} 21. Qg5 {[%clk 0:02:02.9]} 21... f6 {[%clk 0:02:02.3]} 22. Qa5
{[%clk 0:01:59.5]} 22... Bc8 {[%clk 0:01:39.6]} 23. Ne4 {[%clk 0:01:43.7]} 23...
Qd4 {[%clk 0:01:35.7]} 24. Rhf1 {[%clk 0:01:17.6]} 24... Ne3 {[%clk 0:01:23.7]}
25. Rf4 {[%clk 0:00:57]} 25... Nxg2 {[%clk 0:01:23]} 26. Rff1 {[%clk 0:00:39.8]}
26... Nxe1 {[%clk 0:01:22.2]} 27. Rxe1 {[%clk 0:00:40]} 27... Rb5 {[%clk
0:01:15.8]} 28. Qc7 {[%clk 0:00:27]} 28... Re5 {[%clk 0:01:15.8]} 29. c3 {[%clk
0:00:21.4]} 29... Qb6 {[%clk 0:01:01.6]} 30. Qxb6 {[%clk 0:00:13.8]} 30... axb6
{[%clk 0:01:02.5]} 0-1

[Event "Early-Titled-Tuesday-Blitz-October-24-2023"]
[Site "Chess.com"]
[Date "2023.10.24"]
[Round "7"]
[White "SharapovEvgeny"]
[Black "ATM622"]
[Result "1-0"]
[WhiteElo "2620"]
[BlackElo "2427"]
[TimeControl "180+1"]
[EndTime "9:13:53 PDT"]
[Termination "SharapovEvgeny won by resignation"]

1. e4 {[%clk 0:03:00]} 1... c6 {[%clk 0:03:00]} 2. d4 {[%clk 0:02:59.7]} 2... d5
{[%clk 0:03:00.4]} 3. e5 {[%clk 0:03:00.3]} 3... Bf5 {[%clk 0:02:59.4]} 4. Be3
{[%clk 0:03:00.4]} 4... e6 {[%clk 0:02:57]} 5. c4 {[%clk 0:03:00.6]} 5... h5
{[%clk 0:02:55.5]} 6. Nc3 {[%clk 0:03:00.4]} 6... Qa5 {[%clk 0:02:46.2]} 7. a3
{[%clk 0:02:57.6]} 7... Nd7 {[%clk 0:02:43.3]} 8. b4 {[%clk 0:02:56.9]} 8... Qc7
{[%clk 0:02:43.1]} 9. c5 {[%clk 0:02:56.9]} 9... b5 {[%clk 0:02:41.2]} 10. f4
{[%clk 0:02:55]} 10... a5 {[%clk 0:02:38.9]} 11. Nf3 {[%clk 0:02:54.9]} 11...
Nh6 {[%clk 0:02:36]} 12. h3 {[%clk 0:02:53.7]} 12... Be7 {[%clk 0:02:35.3]} 13.
Be2 {[%clk 0:02:53.4]} 13... O-O {[%clk 0:02:31]} 14. O-O {[%clk 0:02:52.9]}
14... Bg6 {[%clk 0:02:18]} 15. Bf2 {[%clk 0:02:50.6]} 15... Qd8 {[%clk 0:02:14]}
16. Qd2 {[%clk 0:02:43.9]} 16... f6 {[%clk 0:02:10.9]} 17. Na2 {[%clk
0:02:13.4]} 17... a4 {[%clk 0:01:48.4]} 18. Nc1 {[%clk 0:02:07.5]} 18... Be4
{[%clk 0:01:45.9]} 19. Nd3 {[%clk 0:02:01.5]} 19... f5 {[%clk 0:01:36.4]} 20.
Qe1 {[%clk 0:01:54.6]} 20... Qe8 {[%clk 0:01:32]} 21. Bh4 {[%clk 0:01:53.6]}
21... Bxh4 {[%clk 0:01:03.9]} 22. Qxh4 {[%clk 0:01:53]} 22... g6 {[%clk
0:01:04.2]} 23. Kf2 {[%clk 0:01:52.2]} 23... Qd8 {[%clk 0:00:55.7]} 24. Ng5
{[%clk 0:01:51.3]} 24... Nf7 {[%clk 0:00:52.6]} 25. Ke1 {[%clk 0:01:42.9]} 25...
Nxg5 {[%clk 0:00:52]} 26. fxg5 {[%clk 0:01:43]} 26... Bxd3 {[%clk 0:00:35]} 27.
Bxd3 {[%clk 0:01:43.1]} 27... Kg7 {[%clk 0:00:34.9]} 28. Kd2 {[%clk 0:01:42.9]}
28... Rf7 {[%clk 0:00:30.9]} 29. g4 {[%clk 0:01:42.4]} 29... Qh8 {[%clk
0:00:27.6]} 30. gxf5 {[%clk 0:01:38.9]} 30... gxf5 {[%clk 0:00:24.4]} 31. g6
{[%clk 0:01:34.9]} 31... Qh6+ {[%clk 0:00:24.2]} 32. Kc2 {[%clk 0:01:34.5]}
32... Kxg6 {[%clk 0:00:20.4]} 33. Rg1+ {[%clk 0:01:33.6]} 33... Kh7 {[%clk
0:00:20.3]} 34. Rg5 {[%clk 0:01:33]} 34... Rg7 {[%clk 0:00:02.3]} 35. Rxh5
{[%clk 0:01:32.6]} 35... Rg2+ {[%clk 0:00:02.5]} 36. Kc3 {[%clk 0:01:32]} 36...
Rg6 {[%clk 0:00:01.4]} 37. Rxh6+ {[%clk 0:01:30.9]} 37... Rxh6 {[%clk
0:00:02.3]} 38. Qe7+ {[%clk 0:01:31]} 1-0

[Event "Early-Titled-Tuesday-Blitz-October-24-2023"]
[Site "Chess.com"]
[Date "2023.10.24"]
[Round "7"]
[White "Casper"]
[Black "DanielTitichoca"]
[Result "0-1"]
[WhiteElo "2458"]
[BlackElo "2631"]
[TimeControl "180+1"]
[EndTime "9:14:05 PDT"]
[Termination "DanielTitichoca won on time"]

1. e4 {[%clk 0:03:00.9]} 1... c5 {[%clk 0:02:59.3]} 2. d4 {[%clk 0:03:01.3]}
2... cxd4 {[%clk 0:02:59.3]} 3. Qxd4 {[%clk 0:03:01.8]} 3... Nc6 {[%clk
0:02:59]} 4. Qe3 {[%clk 0:03:02.3]} 4... g6 {[%clk 0:02:58.5]} 5. Nc3 {[%clk
0:03:02.6]} 5... Bg7 {[%clk 0:02:55.8]} 6. Bd2 {[%clk 0:03:02]} 6... d6 {[%clk
0:02:56]} 7. O-O-O {[%clk 0:03:02.2]} 7... a6 {[%clk 0:02:56.2]} 8. Nd5 {[%clk
0:03:00.7]} 8... Nf6 {[%clk 0:02:54.9]} 9. Bc3 {[%clk 0:02:59.3]} 9... O-O
{[%clk 0:02:54.2]} 10. Nxf6+ {[%clk 0:02:54.9]} 10... exf6 {[%clk 0:02:53.1]}
11. Qg3 {[%clk 0:02:52.2]} 11... Be6 {[%clk 0:02:31.5]} 12. Rxd6 {[%clk
0:02:41]} 12... Qc7 {[%clk 0:02:31.2]} 13. Nf3 {[%clk 0:02:32.6]} 13... b5
{[%clk 0:02:25.6]} 14. Kb1 {[%clk 0:02:06]} 14... b4 {[%clk 0:02:22.5]} 15. Bd2
{[%clk 0:01:51.6]} 15... Ne5 {[%clk 0:02:04]} 16. Bxb4 {[%clk 0:01:40.4]} 16...
Rab8 {[%clk 0:01:55.1]} 17. Nxe5 {[%clk 0:01:31.1]} 17... Rxb4 {[%clk
0:01:52.4]} 18. Nd3 {[%clk 0:01:21]} 18... Rxe4 {[%clk 0:01:48.2]} 19. Rxa6
{[%clk 0:01:00.5]} 19... Qb7 {[%clk 0:01:28.1]} 20. Qd6 {[%clk 0:00:57.5]} 20...
f5 {[%clk 0:01:22.6]} 21. Qb6 {[%clk 0:00:46.1]} 21... Bxa2+ {[%clk 0:01:10.1]}
22. Ka1 {[%clk 0:00:28.8]} 22... Qxb6 {[%clk 0:01:05.9]} 23. Rxb6 {[%clk
0:00:28.9]} 23... Ra8 {[%clk 0:01:06.4]} 24. c3 {[%clk 0:00:20.4]} 24... Rea4
{[%clk 0:00:48.4]} 0-1

[Event "Early-Titled-Tuesday-Blitz-October-24-2023"]
[Site "Chess.com"]
[Date "2023.10.24"]
[Round "7"]
[White "Harry_Rakkel"]
[Black "rdarruda"]
[Result "1-0"]
[WhiteElo "2709"]
[BlackElo "2536"]
[TimeControl "180+1"]
[EndTime "9:14:08 PDT"]
[Termination "Harry_Rakkel won by resignation"]

1. e4 {[%clk 0:03:00.9]} 1... c5 {[%clk 0:02:52.6]} 2. Nf3 {[%clk 0:03:00.5]}
2... Nc6 {[%clk 0:02:51.7]} 3. d4 {[%clk 0:03:00.4]} 3... cxd4 {[%clk
0:02:51.4]} 4. Nxd4 {[%clk 0:03:01.2]} 4... e5 {[%clk 0:02:51.5]} 5. Nb5 {[%clk
0:03:00.7]} 5... a6 {[%clk 0:02:51.8]} 6. Nd6+ {[%clk 0:02:59.7]} 6... Bxd6
{[%clk 0:02:52.1]} 7. Qxd6 {[%clk 0:03:00]} 7... Qe7 {[%clk 0:02:52.8]} 8. Qd1
{[%clk 0:02:56.4]} 8... Nf6 {[%clk 0:02:52.1]} 9. Nc3 {[%clk 0:02:56.1]} 9... d6
{[%clk 0:02:52.4]} 10. Bg5 {[%clk 0:02:55.6]} 10... Be6 {[%clk 0:02:52.5]} 11.
Bxf6 {[%clk 0:02:54.6]} 11... Qxf6 {[%clk 0:02:52.5]} 12. Qxd6 {[%clk
0:02:54.1]} 12... Rd8 {[%clk 0:02:51.1]} 13. Qc5 {[%clk 0:02:51.3]} 13... Qg5
{[%clk 0:02:50.5]} 14. Qe3 {[%clk 0:02:50.6]} 14... Qxe3+ {[%clk 0:02:49.5]} 15.
fxe3 {[%clk 0:02:51.5]} 15... Nb4 {[%clk 0:02:48.3]} 16. Rc1 {[%clk 0:02:49.5]}
16... Bxa2 {[%clk 0:02:46.5]} 17. b3 {[%clk 0:02:48]} 17... O-O {[%clk
0:02:38.1]} 18. Bc4 {[%clk 0:02:33.6]} 18... Rc8 {[%clk 0:02:20.3]} 19. Nd5
{[%clk 0:02:17.5]} 19... Nxd5 {[%clk 0:01:35.6]} 20. Bxd5 {[%clk 0:02:15.4]}
20... Rc7 {[%clk 0:01:29.5]} 21. O-O {[%clk 0:01:53.3]} 21... Rfc8 {[%clk
0:01:25.5]} 22. Rf2 {[%clk 0:01:37.6]} 22... a5 {[%clk 0:00:17.2]} 23. Ra1
{[%clk 0:01:35.3]} 23... Rxc2 {[%clk 0:00:17.1]} 24. Rxa2 {[%clk 0:01:35.2]}
24... Rxa2 {[%clk 0:00:14.4]} 25. Rxa2 {[%clk 0:01:34.6]} 25... b6 {[%clk
0:00:15.3]} 26. Rf2 {[%clk 0:01:25]} 26... Rc7 {[%clk 0:00:14]} 27. Rf5 {[%clk
0:01:24.7]} 27... Re7 {[%clk 0:00:13.6]} 28. Kf2 {[%clk 0:01:23.5]} 28... Kf8
{[%clk 0:00:14.2]} 29. Ke2 {[%clk 0:01:23.5]} 29... f6 {[%clk 0:00:14.8]} 30.
Rf1 {[%clk 0:01:22.8]} 30... Rc7 {[%clk 0:00:15]} 31. Kd2 {[%clk 0:01:23.1]}
31... Ke7 {[%clk 0:00:15.2]} 32. Rc1 {[%clk 0:01:23]} 32... Rxc1 {[%clk
0:00:14.7]} 33. Kxc1 {[%clk 0:01:23.9]} 33... Kd6 {[%clk 0:00:14.8]} 34. Kc2
{[%clk 0:01:24]} 34... Kc5 {[%clk 0:00:14.7]} 35. Kc3 {[%clk 0:01:24]} 35... b5
{[%clk 0:00:15.2]} 36. g4 {[%clk 0:01:22.6]} 36... h6 {[%clk 0:00:15.6]} 37. h4
{[%clk 0:01:21.9]} 37... g5 {[%clk 0:00:16.3]} 38. h5 {[%clk 0:01:20.6]} 38...
Kd6 {[%clk 0:00:14.5]} 39. Bf7 {[%clk 0:01:18.2]} 39... Kc5 {[%clk 0:00:14.1]}
40. b4+ {[%clk 0:01:17.5]} 40... Kb6 {[%clk 0:00:11.9]} 41. bxa5+ {[%clk
0:01:17.1]} 41... Kxa5 {[%clk 0:00:12]} 42. Kb3 {[%clk 0:01:17.4]} 42... b4
{[%clk 0:00:10.5]} 43. Be8 {[%clk 0:01:17.5]} 1-0

[Event "Early-Titled-Tuesday-Blitz-October-24-2023"]
[Site "Chess.com"]
[Date "2023.10.24"]
[Round "7"]
[White "sergeikim"]
[Black "eljanov"]
[Result "0-1"]
[WhiteElo "2597"]
[BlackElo "2812"]
[TimeControl "180+1"]
[EndTime "9:14:12 PDT"]
[Termination "eljanov won on time"]

1. d4 {[%clk 0:03:00.9]} 1... d5 {[%clk 0:02:59.4]} 2. c4 {[%clk 0:03:00.9]}
2... e6 {[%clk 0:02:59.7]} 3. Nc3 {[%clk 0:03:00]} 3... Nf6 {[%clk 0:02:59.9]}
4. Nf3 {[%clk 0:03:00.3]} 4... Nbd7 {[%clk 0:02:57.7]} 5. Bf4 {[%clk 0:03:00.1]}
5... Bb4 {[%clk 0:02:55.6]} 6. e3 {[%clk 0:02:59]} 6... c5 {[%clk 0:02:53.5]} 7.
Bd3 {[%clk 0:02:58]} 7... cxd4 {[%clk 0:02:48.5]} 8. exd4 {[%clk 0:02:57.8]}
8... dxc4 {[%clk 0:02:46.8]} 9. Bxc4 {[%clk 0:02:57.6]} 9... O-O {[%clk
0:02:46.1]} 10. O-O {[%clk 0:02:56.5]} 10... b6 {[%clk 0:02:25.2]} 11. Rc1
{[%clk 0:02:52.5]} 11... Bb7 {[%clk 0:02:22.9]} 12. Qe2 {[%clk 0:02:50.8]} 12...
Bxc3 {[%clk 0:02:08.6]} 13. bxc3 {[%clk 0:02:49.7]} 13... Rc8 {[%clk 0:02:06.4]}
14. Bd3 {[%clk 0:02:45.9]} 14... Nd5 {[%clk 0:02:00.5]} 15. Bd2 {[%clk
0:02:44.5]} 15... Qc7 {[%clk 0:02:00.8]} 16. Qe4 {[%clk 0:02:34.3]} 16... N7f6
{[%clk 0:01:51.2]} 17. Qh4 {[%clk 0:02:33.8]} 17... Ne7 {[%clk 0:01:50.8]} 18.
Ne5 {[%clk 0:02:20.7]} 18... Ng6 {[%clk 0:01:45]} 19. Nxg6 {[%clk 0:02:15.5]}
19... hxg6 {[%clk 0:01:44.9]} 20. Rfe1 {[%clk 0:02:14.8]} 20... Qc6 {[%clk
0:01:20.7]} 21. f3 {[%clk 0:01:58.4]} 21... Qa4 {[%clk 0:01:20.4]} 22. Bg5
{[%clk 0:01:54.9]} 22... Nh7 {[%clk 0:01:15.7]} 23. Be3 {[%clk 0:01:22.4]} 23...
Qxa2 {[%clk 0:01:10.8]} 24. Qe7 {[%clk 0:01:12.7]} 24... Bd5 {[%clk 0:01:01]}
25. Rc2 {[%clk 0:00:52.5]} 25... Qb3 {[%clk 0:00:56.8]} 26. Rec1 {[%clk
0:00:33.1]} 26... a5 {[%clk 0:00:56.8]} 27. Qh4 {[%clk 0:00:20.5]} 27... Bc4
{[%clk 0:00:51.6]} 28. Be4 {[%clk 0:00:07]} 28... f5 {[%clk 0:00:51]} 0-1

[Event "Early-Titled-Tuesday-Blitz-October-24-2023"]
[Site "Chess.com"]
[Date "2023.10.24"]
[Round "7"]
[White "knightinshiningarmour16"]
[Black "Ginzburg_Yakov"]
[Result "0-1"]
[WhiteElo "2179"]
[BlackElo "2596"]
[TimeControl "180+1"]
[EndTime "9:14:14 PDT"]
[Termination "Ginzburg_Yakov won by resignation"]

1. d4 {[%clk 0:02:59]} 1... d5 {[%clk 0:02:59]} 2. Nf3 {[%clk 0:02:57.6]} 2...
Nf6 {[%clk 0:02:58.9]} 3. c4 {[%clk 0:02:53.1]} 3... c6 {[%clk 0:02:58.9]} 4.
cxd5 {[%clk 0:02:49.7]} 4... cxd5 {[%clk 0:02:58.9]} 5. Nc3 {[%clk 0:02:50.6]}
5... Nc6 {[%clk 0:02:58.6]} 6. Bg5 {[%clk 0:02:49.4]} 6... Ne4 {[%clk
0:02:57.9]} 7. Bf4 {[%clk 0:02:48.5]} 7... Bf5 {[%clk 0:02:51.3]} 8. e3 {[%clk
0:02:47.7]} 8... e6 {[%clk 0:02:48.8]} 9. Bd3 {[%clk 0:02:44.2]} 9... Bb4 {[%clk
0:02:39.4]} 10. Bxe4 {[%clk 0:02:42.7]} 10... Bxe4 {[%clk 0:02:36.6]} 11. O-O
{[%clk 0:02:41.7]} 11... Bg6 {[%clk 0:02:29.4]} 12. a3 {[%clk 0:02:31.7]} 12...
Bxc3 {[%clk 0:02:23.5]} 13. bxc3 {[%clk 0:02:30.9]} 13... O-O {[%clk 0:02:24.4]}
14. Qa4 {[%clk 0:02:25.9]} 14... Qa5 {[%clk 0:02:20.2]} 15. Qb3 {[%clk
0:02:20.8]} 15... Qa6 {[%clk 0:02:16.8]} 16. Rfc1 {[%clk 0:02:03.8]} 16... Rac8
{[%clk 0:02:06.9]} 17. Bd6 {[%clk 0:01:57.7]} 17... Rfd8 {[%clk 0:02:05.8]} 18.
Bb4 {[%clk 0:01:56.7]} 18... Bd3 {[%clk 0:01:41.2]} 19. Nd2 {[%clk 0:01:48.1]}
19... b6 {[%clk 0:01:34.2]} 20. c4 {[%clk 0:01:15.5]} 20... dxc4 {[%clk
0:01:33.1]} 21. Nxc4 {[%clk 0:01:15]} 21... Nxb4 {[%clk 0:01:15]} 22. Ne5 {[%clk
0:00:43.4]} 22... Nc2 {[%clk 0:00:59.3]} 23. Ra2 {[%clk 0:00:36.1]} 23... Nxd4
{[%clk 0:00:48.8]} 24. Rxc8 {[%clk 0:00:24.6]} 24... Rxc8 {[%clk 0:00:46.6]} 25.
Qxd3 {[%clk 0:00:16.6]} 25... Rc1+ {[%clk 0:00:45.1]} 0-1

[Event "Early-Titled-Tuesday-Blitz-October-24-2023"]
[Site "Chess.com"]
[Date "2023.10.24"]
[Round "7"]
[White "falzehope0"]
[Black "Shivananda1964"]
[Result "1-0"]
[WhiteElo "2336"]
[BlackElo "2388"]
[TimeControl "180+1"]
[EndTime "9:14:14 PDT"]
[Termination "falzehope0 won on time"]

1. d4 {[%clk 0:03:00.9]} 1... Nf6 {[%clk 0:02:57.8]} 2. e3 {[%clk 0:02:59.3]}
2... g6 {[%clk 0:02:55.8]} 3. Bd3 {[%clk 0:02:59.8]} 3... Bg7 {[%clk 0:02:56.1]}
4. f4 {[%clk 0:03:00.4]} 4... d6 {[%clk 0:02:55.2]} 5. Nf3 {[%clk 0:03:01]} 5...
O-O {[%clk 0:02:54.8]} 6. O-O {[%clk 0:03:01.5]} 6... c5 {[%clk 0:02:55.3]} 7.
c3 {[%clk 0:03:01.3]} 7... Nc6 {[%clk 0:02:55.2]} 8. Bc2 {[%clk 0:03:01.6]} 8...
Re8 {[%clk 0:02:54.3]} 9. d5 {[%clk 0:03:01.5]} 9... Na5 {[%clk 0:02:38.8]} 10.
e4 {[%clk 0:02:56]} 10... e6 {[%clk 0:02:38.9]} 11. Na3 {[%clk 0:02:47.1]} 11...
exd5 {[%clk 0:02:37.9]} 12. exd5 {[%clk 0:02:48]} 12... c4 {[%clk 0:01:32.7]}
13. f5 {[%clk 0:02:37.7]} 13... Qb6+ {[%clk 0:01:22.7]} 14. Nd4 {[%clk
0:02:24.9]} 14... Nxd5 {[%clk 0:01:18.3]} 15. fxg6 {[%clk 0:02:24.3]} 15... fxg6
{[%clk 0:00:59]} 16. Kh1 {[%clk 0:02:24]} 16... Nf6 {[%clk 0:00:55.6]} 17. b4
{[%clk 0:02:15.7]} 17... cxb3 {[%clk 0:00:53.7]} 18. axb3 {[%clk 0:02:15.6]}
18... Nc6 {[%clk 0:00:51.8]} 19. Nab5 {[%clk 0:02:13.8]} 19... Nxd4 {[%clk
0:00:47.7]} 20. Nxd4 {[%clk 0:02:13.6]} 20... Bg4 {[%clk 0:00:44.4]} 21. Qd2
{[%clk 0:02:02.4]} 21... Rac8 {[%clk 0:00:33.2]} 22. Ba3 {[%clk 0:01:59.9]}
22... Ne4 {[%clk 0:00:28.4]} 23. Bxe4 {[%clk 0:01:52.2]} 23... Rxe4 {[%clk
0:00:28]} 24. Rf4 {[%clk 0:01:39.6]} 24... Rce8 {[%clk 0:00:23]} 25. Qf2 {[%clk
0:01:33.9]} 25... Bxd4 {[%clk 0:00:18.8]} 26. cxd4 {[%clk 0:01:33.2]} 26... Qxb3
{[%clk 0:00:09.6]} 27. Bxd6 {[%clk 0:01:21.4]} 27... Bf5 {[%clk 0:00:08.6]} 28.
Be5 {[%clk 0:01:13.9]} 28... Qd5 {[%clk 0:00:06.9]} 29. Rf1 {[%clk 0:01:12.4]}
29... a6 {[%clk 0:00:04.4]} 30. Rxf5 {[%clk 0:01:11.7]} 30... gxf5 {[%clk
0:00:04]} 31. Qxf5 {[%clk 0:01:12.6]} 31... Qe6 {[%clk 0:00:03.1]} 32. Qxe4
{[%clk 0:01:09.4]} 32... b5 {[%clk 0:00:02.7]} 33. Qf3 {[%clk 0:01:05.6]} 33...
b4 {[%clk 0:00:02.2]} 34. Qb7 {[%clk 0:00:58.3]} 1-0